fUSD/lending_fUSD_20251017
["ID","MTS","AMOUNT","RATE_DAILY","PERIOD"]
[391688556,1760729452091,-154.421392,0.00043444,120]
[391688557,1760729452101,-154.421392,0.00043444,120]
[391688558,1760729452111,-151.0,0.00043444,120]
[391688559,1760729452121,-297.945712,0.00043444,120]
[391688560,1760729452130,-154.421392,0.00043444,120]
[391688561,1760729452140,-151.0,0.00043444,120]
[391688562,1760729452149,-283.264368,0.00043444,120]
[391688563,1760729452159,-297.945712,0.00043444,120]
[391688564,1760729452171,-151.0,0.00043444,120]
[391688565,1760729452181,-283.264368,0.00043444,120]
[391688566,1760729452191,-150.0,0.00043487,30]
[391688567,1760729452200,-150.0,0.00043487,30]
[391688568,1760729452210,-150.0,0.00043487,30]
[391688569,1760729452220,-200.0,0.00043491,120]
[391688570,1760729452229,-220.61816105,0.000435,30]
[391688571,1760729452239,-171.85057353,0.000435,120]
[391688572,1760729452249,-828.368428,0.00043506,2]
[391688573,1760729452259,-1698.25441444,0.00043511,15]
[391688574,1760729452269,-150.0,0.00043531,30]
[391688575,1760729452279,-150.0,0.00043552,30]
[391688576,1760729452288,-152.0,0.0004356,120]
[391688577,1760729452298,-150.0,0.00043566,30]
[391688578,1760729452308,-150.0,0.00043602,30]
[391688579,1760729452317,-150.0,0.00043602,30]
[391688580,1760729452327,-150.0,0.00043602,30]
[391688581,1760729452338,-150.0,0.00043617,30]
[391688582,1760729452348,-150.0,0.00043637,30]
[391688583,1760729452358,-150.0,0.0004365,120]
[391688584,1760729452367,-150.0,0.00043663,30]
[391688585,1760729452378,-150.0,0.00043682,30]
[391688586,1760729452387,-413.45041953,0.000437,120]
[391688587,1760729452397,-500.0,0.00043726,2]
[391688588,1760729452406,-500.0,0.00043726,2]
[391688589,1760729452418,-500.0,0.00043726,2]
[391688590,1760729452432,-500.0,0.00043726,2]
[391688591,1760729452442,-500.0,0.00043726,2]
[391688592,1760729452452,-150.0,0.00043726,2]
[391688593,1760729452462,-150.0,0.00043726,2]
[391688594,1760729452474,-500.0,0.00043726,2]
[391688595,1760729452628,-150.0,0.00043726,2]
[391688596,1760729452639,-500.0,0.00043726,2]
[391688597,1760729452649,-150.0,0.00043726,2]
[391688598,1760729452658,-150.0,0.00043726,2]
[391688599,1760729452671,-500.0,0.00043726,2]
[391688600,1760729452680,-500.0,0.00043726,2]
[391688601,1760729452690,-150.0,0.00043726,2]
[391688602,1760729452699,-500.0,0.00043726,2]
[391688603,1760729452709,-500.0,0.00043726,2]
[391688604,1760729452718,-150.0,0.00043726,2]
[391688605,1760729452728,-500.0,0.00043726,2]
[391688606,1760729452738,-500.0,0.00043726,2]
[391688607,1760729452747,-150.0,0.00043726,2]
[391688608,1760729452757,-500.0,0.00043726,2]
[391688609,1760729452767,-150.0,0.00043726,2]
[391688610,1760729452776,-730.0,0.00043726,2]
[391688611,1760729452786,-500.0,0.00043726,2]
[391688612,1760729452795,-150.0,0.00043726,2]
[391688613,1760729452805,-500.0,0.00043726,2]
[391688614,1760729452814,-500.0,0.00043726,2]
[391688615,1760729452824,-1982.0,0.00043726,2]
[391688616,1760729452833,-500.0,0.00043726,2]
[391688617,1760729452843,-500.0,0.00043726,2]
[391688618,1760729452852,-1152.0,0.00043726,2]
[391688619,1760729452862,-150.0,0.00043748,30]
[391688620,1760729452872,-828.368428,0.00043759,2]
[391688621,1760729452882,-150.0,0.00043759,30]
[391688622,1760729452891,-150.0,0.00043775,30]
[391688623,1760729452901,-150.0,0.00043775,30]
[391688624,1760729452912,-500.0,0.00043781,2]
[391688625,1760729452922,-500.0,0.00043781,2]
[391688626,1760729452931,-500.0,0.00043781,2]
[391688627,1760729452940,-240.16573468,0.00043781,2]
[391688628,1760729452948,-500.0,0.00043781,2]
[391688629,1760729452958,-150.0,0.00043781,2]
[391688630,1760729452968,-500.0,0.00043781,2]
[391688631,1760729452977,-150.0,0.00043781,2]
[391688632,1760729452987,-500.0,0.00043781,2]
[391688633,1760729452998,-500.0,0.00043781,2]
[391688634,1760729453008,-500.0,0.00043781,2]
[391688635,1760729453018,-500.0,0.00043781,2]
[391688636,1760729453028,-500.0,0.00043781,2]
[391688637,1760729453039,-496.19407106,0.00043781,2]
[391688638,1760729453049,-730.0,0.00043781,2]
[391688639,1760729453059,-500.0,0.00043781,2]
[391688640,1760729453068,-150.0,0.00043781,2]
[391688641,1760729453078,-500.0,0.00043781,2]
[391688642,1760729453087,-500.0,0.00043781,2]
[391688643,1760729453098,-1982.0,0.00043781,2]
[391688644,1760729453108,-500.0,0.00043781,2]
[391688645,1760729453117,-500.0,0.00043781,2]
[391688646,1760729453127,-1152.0,0.00043781,2]
[391688647,1760729453137,-150.0,0.00043787,30]
[391688648,1760729453147,-150.0,0.00043795,30]
[391688649,1760729453157,-819.79449689,0.000438,120]
[391688650,1760729453168,-494.36842231,0.000438,30]
[391688651,1760729453177,-150.0,0.00043802,30]
[391688652,1760729453189,-150.0,0.00043813,30]
[391688653,1760729453199,-399.2724163,0.00043835,120]
[391688654,1760729453208,-500.0,0.00043835,120]
[391688655,1760729453218,-500.0,0.00043835,120]
[391688656,1760729453228,-500.0,0.00043835,120]
[391688657,1760729453242,-500.0,0.00043835,120]
[391688658,1760729453252,-500.0,0.00043835,120]
[391688659,1760729453263,-500.0,0.00043835,120]
[391688660,1760729453274,-541.66,0.00043835,120]
[391688661,1760729453283,-560.31867766,0.00043835,120]
[391688662,1760729453293,-500.0,0.00043835,120]
[391688663,1760729453304,-500.0,0.00043835,120]
[391688664,1760729453314,-500.0,0.00043835,120]
[391688665,1760729453324,-500.0,0.00043835,120]
[391688666,1760729453334,-500.0,0.00043835,120]
[391688667,1760729453345,-500.0,0.00043835,120]
[391688668,1760729453355,-500.0,0.00043835,120]
[391688669,1760729453365,-500.0,0.00043835,120]
[391688670,1760729453375,-500.0,0.00043835,2]
[391688671,1760729453386,-500.0,0.00043835,120]
[391688672,1760729453396,-500.0,0.00043835,120]
[391688673,1760729453406,-500.0,0.00043835,120]
[391688674,1760729453417,-500.0,0.00043835,7]
[391688675,1760729453431,-500.0,0.00043835,120]
[391688676,1760729453441,-500.0,0.00043835,120]
[391688677,1760729453451,-500.0,0.00043835,120]
[391688678,1760729453460,-500.0,0.00043835,120]
[391688679,1760729453470,-500.0,0.00043835,120]
[391688680,1760729453480,-300.0,0.00043835,120]
[391688681,1760729453490,-500.0,0.00043835,120]
[391688682,1760729453501,-316.0,0.00043835,120]
[391688683,1760729453510,-500.0,0.00043835,120]
[391688684,1760729453520,-242.0219001,0.00043835,120]
[391688685,1760729453530,-500.0,0.00043835,120]
[391688686,1760729453540,-500.0,0.00043835,120]
[391688687,1760729453550,-500.0,0.00043835,120]
[391688688,1760729453559,-500.0,0.00043835,120]
[391688689,1760729453569,-324.53229901,0.00043835,120]
[391688690,1760729453578,-500.0,0.00043835,120]
[391688691,1760729453588,-500.0,0.00043835,120]
[391688692,1760729453598,-500.0,0.00043835,120]
[391688693,1760729453607,-500.0,0.00043835,120]
[391688694,1760729453617,-504.70210895,0.00043835,120]
[391688695,1760729453627,-500.0,0.00043835,120]
[391688696,1760729453637,-500.0,0.00043835,120]
[391688697,1760729453647,-500.0,0.00043835,120]
[391688698,1760729453657,-500.0,0.00043835,120]
[391688699,1760729453667,-500.0,0.00043835,120]
[391688700,1760729453677,-500.0,0.00043835,120]
[391688701,1760729453687,-500.0,0.00043835,120]
[391688702,1760729453697,-500.0,0.00043835,120]
[391688703,1760729453707,-500.0,0.00043835,120]
[391688704,1760729453717,-500.0,0.00043835,120]
[391688705,1760729453726,-512.67351883,0.00043835,120]
[391688706,1760729453736,-483.48958018,0.00043835,120]
[391688707,1760729453746,-500.0,0.00043835,120]
[391688708,1760729453756,-500.0,0.00043835,120]
[391688709,1760729453765,-500.0,0.00043835,120]
[391688710,1760729453774,-500.0,0.00043835,120]
[391688711,1760729453783,-500.0,0.00043835,120]
[391688712,1760729453793,-500.0,0.00043835,120]
[391688713,1760729453802,-500.0,0.00043835,120]
[391688714,1760729453812,-500.0,0.00043835,120]
[391688715,1760729453822,-630.42123157,0.00043835,120]
[391688716,1760729453832,-500.0,0.00043835,120]
[391688717,1760729453842,-500.0,0.00043835,120]
[391688718,1760729453852,-344.67187884,0.00043835,120]
[391688719,1760729453861,-500.0,0.00043835,120]
[391688720,1760729453871,-500.0,0.00043835,7]
[391688721,1760729453881,-500.0,0.00043835,120]
[391688722,1760729453891,-500.0,0.00043835,120]
[391688723,1760729453900,-545.52951032,0.00043835,120]
[391688724,1760729453910,-500.0,0.00043835,120]
[391688725,1760729453920,-500.0,0.00043835,120]
[391688726,1760729453930,-500.0,0.00043835,120]
[391688727,1760729453939,-500.0,0.00043835,120]
[391688728,1760729453949,-500.66640271,0.00043835,120]
[391688729,1760729453958,-500.0,0.00043835,120]
[391688730,1760729453968,-220.8849106,0.00043835,120]
[391688731,1760729453978,-500.0,0.00043835,120]
[391688732,1760729453988,-500.0,0.00043835,120]
[391688733,1760729453998,-500.0,0.00043835,120]
[391688734,1760729454008,-500.0,0.00043835,120]
[391688735,1760729454018,-500.0,0.00043835,120]
[391688736,1760729454028,-500.0,0.00043835,120]
[391688737,1760729454038,-500.0,0.00043835,120]
[391688738,1760729454048,-500.0,0.00043835,120]
[391688739,1760729454057,-500.0,0.00043835,120]
[391688740,1760729454068,-500.0,0.00043835,120]
[391688741,1760729454078,-390.0,0.00043835,120]
[391688742,1760729454088,-500.0,0.00043835,2]
[391688743,1760729454098,-547.54,0.00043835,120]
[391688744,1760729454108,-842.71,0.00043835,120]
[391688745,1760729454117,-500.0,0.00043835,120]
[391688746,1760729454127,-500.0,0.00043835,120]
[391688747,1760729454137,-500.0,0.00043835,120]
[391688748,1760729454147,-524.48358087,0.00043835,120]
[391688749,1760729454157,-500.0,0.00043835,120]
[391688750,1760729454166,-500.0,0.00043835,120]
[391688751,1760729454177,-500.0,0.00043835,120]
[391688752,1760729454187,-405.09966708,0.00043835,120]
[391688753,1760729454198,-500.0,0.00043835,120]
[391688754,1760729454208,-162.0981998,0.00043835,120]
[391688755,1760729454218,-11665.5525,0.00043835,120]
[391688756,1760729454227,-525.23058767,0.00043835,120]
[391688757,1760729454237,-500.0,0.00043835,120]
[391688758,1760729454247,-500.0,0.00043835,120]
[391688759,1760729454257,-500.0,0.00043835,120]
[391688760,1760729454267,-568.23,0.00043835,120]
[391688761,1760729454278,-500.0,0.00043835,2]
[391688762,1760729454287,-500.0,0.00043835,120]
[391688763,1760729454297,-500.0,0.00043835,120]
[391688764,1760729454307,-197.41069151,0.00043835,120]
[391688765,1760729454318,-500.0,0.00043835,120]
[391688766,1760729454327,-500.0,0.00043835,2]
[391688767,1760729454337,-500.0,0.00043835,120]
[391688768,1760729454346,-500.0,0.00043835,120]
[391688769,1760729454356,-500.0,0.00043835,120]
[391688770,1760729454367,-500.0,0.00043835,120]
[391688771,1760729454378,-500.0,0.00043835,120]
[391688772,1760729454388,-500.0,0.00043835,120]
[391688773,1760729454399,-514.4,0.00043835,120]
[391688774,1760729454409,-500.0,0.00043835,120]
[391688775,1760729454420,-500.0,0.00043835,120]
[391688776,1760729454434,-500.0,0.00043835,6]
[391688777,1760729454444,-500.0,0.00043835,120]
[391688778,1760729454454,-500.0,0.00043835,120]
[391688779,1760729454464,-500.0,0.00043835,120]
[391688780,1760729454475,-500.0,0.00043835,120]
[391688781,1760729454484,-163.01782728,0.00043835,120]
[391688782,1760729454494,-500.0,0.00043835,120]
[391688783,1760729454505,-500.0,0.00043835,120]
[391688784,1760729454515,-500.0,0.00043835,120]
[391688785,1760729454524,-500.0,0.00043835,120]
[391688786,1760729454534,-500.0,0.00043835,120]
[391688787,1760729454544,-500.0,0.00043835,120]
[391688788,1760729454553,-501.52904935,0.00043835,120]
[391688789,1760729454562,-514.7453143,0.00043835,120]
[391688790,1760729454571,-320.61,0.00043835,120]
[391688791,1760729454581,-500.0,0.00043835,120]
[391688792,1760729454590,-500.0,0.00043835,120]
[391688793,1760729454600,-183.36915395,0.00043835,120]
[391688794,1760729454609,-500.0,0.00043835,120]
[391688795,1760729454619,-500.0,0.00043835,120]
[391688796,1760729454628,-500.0,0.00043835,120]
[391688797,1760729454637,-500.0,0.00043835,120]
[391688798,1760729454646,-500.0,0.00043835,120]
[391688799,1760729454656,-500.0,0.00043835,120]
[391688800,1760729454665,-620.58,0.00043835,120]
[391688801,1760729454675,-500.0,0.00043835,120]
[391688802,1760729454684,-500.0,0.00043835,120]
[391688803,1760729454693,-500.0,0.00043835,120]
[391688804,1760729454703,-500.0,0.00043835,120]
[391688805,1760729454712,-500.0,0.00043835,120]
[391688806,1760729454721,-500.0,0.00043835,120]
[391688807,1760729454731,-500.0,0.00043835,120]
[391688808,1760729454740,-500.0,0.00043835,14]
[391688809,1760729454749,-500.0,0.00043835,120]
[391688810,1760729454759,-500.0,0.00043835,120]
[391688811,1760729454769,-500.0,0.00043835,60]
[391688812,1760729454779,-406.46758997,0.00043835,120]
[391688813,1760729454788,-500.0,0.00043835,120]
[391688814,1760729454797,-500.0,0.00043835,120]
[391688815,1760729454807,-500.0,0.00043835,120]
[391688816,1760729454817,-500.0,0.00043835,120]
[391688817,1760729454826,-500.0,0.00043835,120]
[391688818,1760729454835,-500.0,0.00043835,120]
[391688819,1760729454845,-500.0,0.00043835,120]
[391688820,1760729454855,-233.81115542,0.00043835,120]
[391688821,1760729454866,-300.0,0.00043835,2]
[391688822,1760729454876,-500.0,0.00043835,120]
[391688823,1760729454885,-500.0,0.00043835,120]
[391688824,1760729454895,-500.0,0.00043835,30]
[391688825,1760729454905,-500.0,0.00043835,120]
[391688826,1760729454915,-459.32671077,0.00043835,120]
[391688827,1760729454924,-500.0,0.00043835,120]
[391688828,1760729454934,-500.0,0.00043835,120]
[391688829,1760729454944,-502.49491789,0.00043835,120]
[391688830,1760729454954,-500.0,0.00043835,120]
[391688831,1760729454964,-500.0,0.00043835,16]
[391688832,1760729454974,-500.0,0.00043835,120]
[391688833,1760729454984,-500.0,0.00043835,120]
[391688834,1760729454994,-500.0,0.00043835,120]
[391688835,1760729455003,-500.0,0.00043835,120]
[391688836,1760729455013,-500.0,0.00043835,120]
[391688837,1760729455023,-500.0,0.00043835,120]
[391688838,1760729455032,-400.0,0.00043835,120]
[391688839,1760729455041,-500.0,0.00043835,120]
[391688840,1760729455051,-500.0,0.00043835,120]
[391688841,1760729455061,-500.0,0.00043835,120]
[391688842,1760729455071,-500.0,0.00043835,120]
[391688843,1760729455080,-500.0,0.00043835,120]
[391688844,1760729455092,-583.81871619,0.00043835,120]
[391688845,1760729455101,-500.0,0.00043835,120]
[391688846,1760729455111,-400.0,0.00043835,120]
[391688847,1760729455121,-2514.88,0.00043835,120]
[391688848,1760729455132,-500.0,0.00043835,120]
[391688849,1760729455142,-531.34,0.00043835,120]
[391688850,1760729455151,-500.0,0.00043835,120]
[391688851,1760729455161,-500.0,0.00043835,120]
[391688852,1760729455171,-500.0,0.00043835,120]
[391688853,1760729455180,-500.0,0.00043835,30]
[391688854,1760729455194,-500.0,0.00043835,120]
[391688855,1760729455203,-500.0,0.00043835,120]
[391688856,1760729455213,-1000.0,0.00043835,120]
[391688857,1760729455222,-500.0,0.00043835,120]
[391688858,1760729455231,-500.0,0.00043835,120]
[391688859,1760729455242,-500.0,0.00043835,120]
[391688860,1760729455251,-500.0,0.00043835,120]
[391688861,1760729455261,-500.0,0.00043835,120]
[391688862,1760729455271,-500.0,0.00043835,120]
[391688863,1760729455280,-500.0,0.00043835,120]
[391688864,1760729455290,-500.0,0.00043835,120]
[391688865,1760729455300,-500.0,0.00043835,120]
[391688866,1760729455309,-500.0,0.00043835,120]
[391688867,1760729455319,-500.0,0.00043835,120]
[391688868,1760729455329,-500.0,0.00043835,120]
[391688869,1760729455338,-500.0,0.00043835,120]
[391688870,1760729455348,-500.0,0.00043835,120]
[391688871,1760729455357,-400.0,0.00043835,120]
[391688872,1760729455366,-500.0,0.00043835,120]
[391688873,1760729455377,-500.0,0.00043835,120]
[391688874,1760729455386,-152.81143038,0.00043835,120]
[391688875,1760729455395,-500.0,0.00043835,120]
[391688876,1760729455404,-500.0,0.00043835,120]
[391688877,1760729455415,-500.0,0.00043835,120]
[391688878,1760729455427,-500.0,0.00043835,120]
[391688879,1760729455436,-351.85297663,0.00043835,120]
[391688880,1760729455445,-500.0,0.00043835,120]
[391688881,1760729455455,-500.0,0.00043835,120]
[391688882,1760729455464,-500.0,0.00043835,120]
[391688883,1760729455474,-500.0,0.00043835,120]
[391688884,1760729455484,-500.0,0.00043835,120]
[391688885,1760729455493,-500.0,0.00043835,120]
[391688886,1760729455503,-500.0,0.00043835,120]
[391688887,1760729455512,-500.0,0.00043835,120]
[391688888,1760729455522,-500.0,0.00043835,2]
[391688889,1760729455531,-500.0,0.00043835,120]
[391688890,1760729455540,-511.91079126,0.00043835,120]
[391688891,1760729455550,-500.0,0.00043835,120]
[391688892,1760729455559,-500.0,0.00043835,120]
[391688893,1760729455568,-500.0,0.00043835,120]
[391688894,1760729455578,-500.0,0.00043835,120]
[391688895,1760729455587,-500.0,0.00043835,120]
[391688896,1760729455597,-400.0,0.00043835,120]
[391688897,1760729455606,-500.0,0.00043835,120]
[391688898,1760729455616,-500.0,0.00043836,2]
[391688899,1760729455625,-500.0,0.00043836,2]
[391688900,1760729455634,-500.0,0.00043836,2]
[391688901,1760729455643,-300.0,0.00043836,2]
[391688902,1760729455653,-500.0,0.00043836,2]
[391688903,1760729455662,-200.0,0.00043836,2]
[391688904,1760729455673,-500.0,0.00043836,2]
[391688905,1760729455682,-200.0,0.00043836,2]
[391688906,1760729455693,-500.0,0.00043836,2]
[391688907,1760729455702,-500.0,0.00043836,2]
[391688908,1760729455712,-500.0,0.00043836,2]
[391688909,1760729455722,-500.0,0.00043836,2]
[391688910,1760729455731,-477.79108516,0.00043836,2]
[391688911,1760729455741,-730.0,0.00043836,2]
[391688912,1760729455750,-500.0,0.00043836,2]
[391688913,1760729455760,-200.82157195,0.00043836,2]
[391688914,1760729455769,-500.0,0.00043836,2]
[391688915,1760729455778,-500.0,0.00043836,2]
[391688916,1760729455788,-1982.0,0.00043836,2]
[391688917,1760729455798,-500.0,0.00043836,2]
[391688918,1760729455807,-500.0,0.00043836,2]
[391688919,1760729455816,-1152.0,0.00043836,2]
[391688920,1760729455826,-1000.0,0.00043836,120]
[391688921,1760729455835,-1000.0,0.00043836,120]
[391688922,1760729455844,-1000.0,0.00043836,120]
[391688923,1760729455853,-1000.0,0.00043836,120]
[391688924,1760729455863,-1000.0,0.00043836,120]
[391688925,1760729455872,-1689.79018229,0.00043836,120]
[391688926,1760729455881,-150.0,0.00043862,30]
[391688927,1760729455891,-150.0,0.00043878,30]
[391688928,1760729455900,-500.0,0.0004389,2]
[391688929,1760729455909,-500.0,0.0004389,2]
[391688930,1760729455919,-500.0,0.0004389,2]
[391688931,1760729455928,-150.0,0.0004389,2]
[391688932,1760729455937,-500.0,0.0004389,2]
[391688933,1760729455948,-492.75296998,0.0004389,2]
[391688934,1760729455957,-500.0,0.0004389,2]
[391688935,1760729455967,-500.0,0.0004389,2]
[391688936,1760729455977,-730.0,0.0004389,2]
[391688937,1760729455986,-500.0,0.0004389,2]
[391688938,1760729455996,-500.0,0.0004389,2]
[391688939,1760729456005,-500.0,0.0004389,2]
[391688940,1760729456015,-1982.0,0.0004389,2]
[391688941,1760729456025,-500.0,0.0004389,2]
[391688942,1760729456034,-1152.0,0.0004389,2]
[391688943,1760729456044,-828.368428,0.00043908,2]
[391688944,1760729456053,-150.0,0.00043928,30]
[391688945,1760729456063,-150.0,0.00043943,30]
[391688946,1760729456072,-500.0,0.00043945,2]
[391688947,1760729456081,-500.0,0.00043945,2]
[391688948,1760729456090,-500.0,0.00043945,2]
[391688949,1760729456099,-500.0,0.00043945,2]
[391688950,1760729456109,-500.0,0.00043945,2]
[391688951,1760729456119,-500.0,0.00043945,2]
[391688952,1760729456128,-730.0,0.00043945,2]
[391688953,1760729456138,-500.0,0.00043945,2]
[391688954,1760729456147,-500.0,0.00043945,2]
[391688955,1760729456156,-500.0,0.00043945,2]
[391688956,1760729456167,-1982.0,0.00043945,2]
[391688957,1760729456176,-500.0,0.00043945,2]
[391688958,1760729456185,-1152.0,0.00043945,2]
[391688959,1760729456194,-1307.21,0.00043948,120]
[391688960,1760729456347,-150.0,0.00043948,30]
[391688961,1760729456359,-150.0,0.00043948,30]
[391688962,1760729456369,-150.0,0.00043948,30]
[391688963,1760729456378,-468.50978133,0.0004395,10]
[391688964,1760729456387,-213.94386236,0.00043965,60]
[391688965,1760729456397,-150.0,0.00043987,30]
[391688966,1760729456407,-1000.0,0.00043999,120]
[391688967,1760729456417,-500.0,0.00044,2]
[391688968,1760729456430,-500.0,0.00044,2]
[391688969,1760729456439,-167.15721943,0.00044,2]
[391688970,1760729456448,-500.0,0.00044,2]
[391688971,1760729456458,-500.0,0.00044,2]
[391688972,1760729456469,-500.0,0.00044,2]
[391688973,1760729456479,-730.0,0.00044,2]
[391688974,1760729456488,-500.0,0.00044,2]
[391688975,1760729456501,-500.0,0.00044,2]
[391688976,1760729456510,-500.0,0.00044,2]
[391688977,1760729456521,-1982.0,0.00044,2]
[391688978,1760729456530,-500.0,0.00044,2]
[391688979,1760729456539,-1152.0,0.00044,2]
[391688980,1760729456549,-218.94971634,0.00044,120]
[391688981,1760729456558,-451.21546376,0.00044,30]
[391688982,1760729456568,-378.51143566,0.00044,120]
[391688983,1760729456577,-811.79859076,0.00044,120]
[391688984,1760729456587,-161.0,0.00044,120]
[391688985,1760729456596,-150.0,0.00044008,30]
[391688986,1760729456605,-150.0,0.00044039,30]
[391688987,1760729456614,-500.0,0.00044055,2]
[391688988,1760729456624,-500.0,0.00044055,2]
[391688989,1760729456633,-500.0,0.00044055,2]
[391688990,1760729456643,-427.60143546,0.00044055,2]
[391688991,1760729456653,-500.0,0.00044055,2]
[391688992,1760729456662,-730.0,0.00044055,2]
[391688993,1760729456672,-500.0,0.00044055,2]
[391688994,1760729456681,-554.07051081,0.00044055,2]
[391688995,1760729456690,-500.0,0.00044055,2]
[391688996,1760729456700,-1982.0,0.00044055,2]
[391688997,1760729456709,-500.0,0.00044055,2]
[391688998,1760729456719,-1152.0,0.00044055,2]
[391688999,1760729456728,-150.0,0.0004406,30]
[391689000,1760729456737,-150.0,0.00044074,30]
[391689001,1760729456747,-150.0,0.00044087,30]
[391689002,1760729456757,-150.0,0.00044087,30]
[391689003,1760729456766,-150.0,0.00044087,30]
[391689004,1760729456776,-500.0,0.00044109,120]
[391689005,1760729456786,-500.0,0.00044109,120]
[391689006,1760729456795,-500.0,0.00044109,120]
[391689007,1760729456804,-500.0,0.00044109,120]
[391689008,1760729456813,-500.0,0.00044109,120]
[391689009,1760729456823,-500.0,0.00044109,120]
[391689010,1760729456832,-500.0,0.00044109,2]
[391689011,1760729456842,-500.0,0.00044109,120]
[391689012,1760729456851,-500.0,0.00044109,120]
[391689013,1760729456860,-500.0,0.00044109,120]
[391689014,1760729456869,-500.0,0.00044109,120]
[391689015,1760729456878,-500.0,0.00044109,120]
[391689016,1760729456887,-500.0,0.00044109,120]
[391689017,1760729456896,-500.0,0.00044109,120]
[391689018,1760729456907,-500.0,0.00044109,120]
[391689019,1760729456915,-300.0,0.00044109,120]
[391689020,1760729456926,-500.0,0.00044109,120]
[391689021,1760729456935,-500.0,0.00044109,120]
[391689022,1760729456944,-500.0,0.00044109,120]
[391689023,1760729456953,-500.0,0.00044109,120]
[391689024,1760729456962,-500.0,0.00044109,120]
[391689025,1760729456971,-500.0,0.00044109,120]
[391689026,1760729456980,-500.0,0.00044109,120]
[391689027,1760729456990,-500.0,0.00044109,120]
[391689028,1760729457000,-500.0,0.00044109,120]
[391689029,1760729457010,-500.0,0.00044109,120]
[391689030,1760729457019,-500.0,0.00044109,120]
[391689031,1760729457030,-500.0,0.00044109,120]
[391689032,1760729457039,-500.0,0.00044109,120]
[391689033,1760729457048,-500.0,0.00044109,120]
[391689034,1760729457058,-500.0,0.00044109,120]
[391689035,1760729457067,-500.0,0.00044109,120]
[391689036,1760729457077,-500.0,0.00044109,120]
[391689037,1760729457086,-500.0,0.00044109,120]
[391689038,1760729457096,-500.0,0.00044109,120]
[391689039,1760729457106,-500.0,0.00044109,120]
[391689040,1760729457115,-500.0,0.00044109,120]
[391689041,1760729457125,-500.0,0.00044109,120]
[391689042,1760729457134,-500.0,0.00044109,120]
[391689043,1760729457144,-500.0,0.00044109,120]
[391689044,1760729457154,-500.0,0.00044109,120]
[391689045,1760729457163,-500.0,0.00044109,120]
[391689046,1760729457174,-500.0,0.00044109,7]
[391689047,1760729457184,-500.0,0.00044109,120]
[391689048,1760729457194,-500.0,0.00044109,120]
[391689049,1760729457203,-500.0,0.00044109,120]
[391689050,1760729457213,-500.0,0.00044109,120]
[391689051,1760729457222,-500.0,0.00044109,120]
[391689052,1760729457232,-500.0,0.00044109,120]
[391689053,1760729457241,-500.0,0.00044109,120]
[391689054,1760729457251,-500.0,0.00044109,120]
[391689055,1760729457260,-500.0,0.00044109,120]